lending/lending_fUSD_20240605
["ID","MTS","AMOUNT","RATE_DAILY","PERIOD"]
[328612043,1717609832297,-800.431,0.0002907,2]
[328612044,1717609832306,-750.0,0.0002907,2]
[328612045,1717609832315,-103.18062262,0.0002907,2]
[328612046,1717609832327,-107.50737738,0.0002907,2]
[328612047,1717609832336,-150.0,0.0002907,2]
[328612048,1717609832345,-808.78710451,0.000291,10]
[328612049,1717609832357,-1091.21289549,0.000291,10]
[328612050,1717609832366,-800.0,0.000291,10]
[328612051,1717609832376,-3510.5234,0.00029179,2]
[328612052,1717609832386,-4762.46328337,0.00029179,2]
[328612053,1717609832401,-122.85071663,0.00029179,2]
[328612054,1717609832411,-695.97372854,0.00029179,2]
[328612055,1717609832422,-757.13168339,0.00029179,2]
[328612056,1717609832434,-637.7,0.00029179,2]
[328612057,1717609832446,-7412.92945812,0.00029179,2]
[328612058,1717609832457,-1432.68764726,0.00029179,2]
[328612059,1717609837756,-6916.0,0.00029179,2]
[328612061,1717609837768,-7840.83,0.00029179,2]
[328612079,1717609837950,-365.07768269,0.00029179,2]
[328612080,1717609837960,-1161.01414947,0.00029179,15]
[328612081,1717609837970,-173.94091788,0.00029179,2]
[328612082,1717609838194,-504.49705695,0.000292,10]
[328612083,1717609838214,-1009.41412186,0.000292,10]
[328612084,1717609838227,-746.22808568,0.000292,10]
[328612085,1717609838238,-239.86073551,0.000292,10]
[328612086,1717609838249,-214.87223621,0.000292,10]
[328612087,1717609838269,-355.80919009,0.000292,10]
[328612088,1717609838297,-529.3185737,0.000292,10]
[328612089,1717609838307,-1161.01414943,0.00029259,15]
[328612090,1717609838318,-472.74626627,0.00029278,2]
[328612091,1717609838328,-813.9757,0.00029279,2]
[328612092,1717609838338,-6228.49520589,0.00029279,2]
[328612093,1717609838544,-1e-08,0.00029279,2]
[328612094,1717609840832,-9912.81271741,0.00029279,2]
[328612095,1717609841087,-3396.91497376,0.00029279,2]
[328612096,1717609841100,-564.56499991,0.00029279,2]
[328612097,1717609841113,-1301.90749695,0.00029279,2]
[328612098,1717609841125,-2362.39526815,0.00029279,2]
[328612099,1717609841136,-650.0,0.00029279,2]
[328612100,1717609841148,-1491.09837849,0.00029279,2]
[328612101,1717609841159,-2435.38767799,0.00029279,2]
[328612102,1717609841171,-8003.84360503,0.00029279,2]
[328612103,1717609841188,-7117.1,0.00029279,2]
[328612104,1717609841200,-819.68910007,0.00029279,2]
[328612105,1717609841267,-22533.87158894,0.00029279,2]
[328612120,1717609842952,-17611.9309849,0.00029279,2]
[328612121,1717609843082,98.27691951,0.00022394,2]
[328612122,1717609843103,128.2997624,0.00022394,2]
[328612123,1717609843115,-14766.9925025,0.00029279,2]
[328612124,1717609843125,-882.6522,0.00029279,2]
[328612125,1717609843135,-127179.2038,0.00029279,2]
[328612126,1717609843145,-419.0757,0.00029279,2]
[328612127,1717609843155,-1000.0,0.00029285,2]
[328612128,1717609843165,-3200.0,0.000293,10]
[328612129,1717609843175,-1300.0,0.000293,10]
[328612130,1717609843191,-1161.01414943,0.00029339,15]
[328612131,1717609843200,-500.0,0.00029379,2]
[328612132,1717609843211,-500.0,0.00029379,2]
[328612133,1717609843220,-500.0,0.00029379,2]
[328612134,1717609843232,-500.0,0.00029379,2]
[328612135,1717609843241,-500.0,0.00029379,2]
[328612136,1717609843250,-500.0,0.00029379,2]
[328612137,1717609843264,-510.00645658,0.00029379,4]
[328612138,1717609843274,-500.0,0.00029379,4]
[328612139,1717609843283,-500.0,0.00029379,4]
[328612140,1717609843292,-500.0,0.00029379,4]
[328612141,1717609843302,-500.0,0.00029379,4]
[328612142,1717609843312,-500.0,0.00029379,4]
[328612143,1717609843322,-500.0,0.00029379,4]
[328612144,1717609843331,-500.0,0.00029379,4]
[328612145,1717609843342,-600.0,0.000294,10]
[328612146,1717609843353,-7500.0,0.000294,2]
[328612147,1717609843363,-200.0,0.000294,10]
[328612148,1717609843374,-325.27729568,0.000294,2]
[328612149,1717609843383,-150.0,0.000294,6]
[328612150,1717609843393,-150.0,0.000294,6]
[328612151,1717609843403,-1161.01414943,0.00029419,15]
[328612152,1717609843412,-240.06048357,0.00029419,15]
[328612153,1717609843422,-173.94091788,0.0002942,2]
[328612154,1717609843432,-293.48325017,0.00029469,4]
[328612155,1717609843442,-500.0,0.00029478,2]
[328612156,1717609843452,-150.0,0.00029484,2]
[328612157,1717609843461,-380.70996916,0.00029484,2]
[328612158,1717609843471,-151.42,0.0002949,2]
[328612159,1717609843480,-208.72501019,0.00029498,2]
[328612160,1717609843490,-3946.39750843,0.00029498,2]
[328612161,1717609843500,-507.96033274,0.00029498,30]
[328612162,1717609843512,-456.49041852,0.00029499,2]
[328612163,1717609843521,-500.0,0.00029499,2]
[328612164,1717609843531,-500.0,0.00029499,2]
[328612165,1717609843540,-295.06653921,0.00029499,2]
[328612166,1717609843550,-500.0,0.00029499,2]
[328612167,1717609843559,-298.29940835,0.00029499,2]
[328612168,1717609843568,-500.0,0.00029499,2]
[328612169,1717609843578,-500.0,0.00029499,2]
[328612170,1717609843588,-500.0,0.00029499,2]
[328612171,1717609843597,-500.0,0.00029499,2]
[328612172,1717609843606,-500.0,0.00029499,2]
[328612173,1717609843615,-173.19217151,0.00029499,2]
[328612174,1717609843626,-500.0,0.00029499,4]
[328612175,1717609843635,-403.97979197,0.00029499,4]
[328612176,1717609843646,-326.46688886,0.00029499,4]
[328612177,1717609843656,-500.0,0.00029499,4]
[328612178,1717609843666,-500.0,0.00029499,4]
[328612179,1717609843680,-166.54930842,0.00029499,4]
[328612180,1717609843690,-718.38,0.00029499,4]
[328612181,1717609843700,-718.38,0.00029499,4]
[328612182,1717609843709,-718.38,0.00029499,4]
[328612183,1717609843718,-500.0,0.00029499,4]
[328612184,1717609843728,-500.0,0.00029499,4]
[328612185,1717609843738,-540.4,0.00029499,4]
[328612186,1717609843748,-500.0,0.00029499,4]
[328612188,1717609843761,-500.0,0.00029499,4]
[328612191,1717609843772,-500.0,0.00029499,4]
[328612192,1717609843782,-1862.97,0.00029499,4]
[328612193,1717609843792,-1862.97,0.00029499,4]
[328612194,1717609843801,-1862.97,0.00029499,4]
[328612195,1717609843810,-500.0,0.00029499,4]
[328612196,1717609843820,-500.0,0.00029499,4]
[328612197,1717609843830,-500.0,0.00029499,4]
[328612198,1717609843839,-500.0,0.00029499,4]
[328612199,1717609843848,-494.56185622,0.00029499,4]
[328612200,1717609843860,-548.43268589,0.00029499,4]
[328612201,1717609843871,-563.01,0.00029499,4]
[328612202,1717609843880,-762.7,0.00029499,4]
[328612203,1717609843890,-762.7,0.00029499,4]
[328612204,1717609843900,-762.7,0.00029499,4]
[328612205,1717609843910,-500.0,0.00029499,4]
[328612206,1717609843919,-500.0,0.00029499,4]
[328612207,1717609843929,-500.0,0.00029499,4]
[328612208,1717609843939,-500.0,0.00029499,4]
[328612209,1717609843949,-500.0,0.00029499,4]
[328612210,1717609843959,-552.85,0.00029499,4]
[328612211,1717609843969,-500.0,0.00029499,4]
[328612212,1717609843978,-500.0,0.00029499,4]
[328612213,1717609843987,-500.0,0.00029499,4]
[328612214,1717609843997,-500.0,0.00029499,4]
[328612215,1717609844006,-500.0,0.00029499,4]
[328612216,1717609844016,-500.0,0.00029499,4]
[328612217,1717609844025,-500.0,0.00029499,4]
[328612218,1717609844034,-1107.62,0.00029499,4]
[328612219,1717609844044,-1107.62,0.00029499,4]
[328612220,1717609844053,-1107.62,0.00029499,4]
[328612221,1717609844062,-500.0,0.00029499,4]
[328612222,1717609844071,-500.0,0.00029499,4]
[328612223,1717609844080,-500.0,0.00029499,4]
[328612224,1717609844090,-500.0,0.00029499,4]
[328612225,1717609844099,-500.0,0.00029499,4]
[328612226,1717609844108,-500.0,0.00029499,4]
[328612227,1717609844118,-500.0,0.00029499,4]
[328612228,1717609844129,-500.0,0.00029499,4]
[328612229,1717609844139,-500.0,0.00029499,4]
[328612230,1717609844150,-500.0,0.00029499,4]
[328612231,1717609844160,-500.0,0.00029499,4]
[328612232,1717609844169,-500.0,0.00029499,4]
[328612233,1717609844178,-500.0,0.00029499,4]
[328612234,1717609844190,-500.0,0.00029499,4]
[328612235,1717609844199,-1745.49,0.00029499,4]
[328612236,1717609844208,-1745.49,0.00029499,4]
[328612237,1717609844218,-1745.49,0.00029499,4]
[328612238,1717609844227,-500.0,0.00029499,4]
[328612239,1717609844238,-500.97106088,0.00029499,4]
[328612240,1717609844247,-500.0,0.00029499,4]
[328612241,1717609844258,-500.0,0.00029499,4]
[328612242,1717609844269,-500.0,0.00029499,4]
[328612243,1717609844278,-500.0,0.00029499,4]
[328612244,1717609844287,-1161.01414943,0.00029499,15]
[328612245,1717609844296,-240.06048357,0.00029499,15]
[328612246,1717609844306,-423171.81736817,0.000295,5]
[328612247,1717609844315,-3752.18198901,0.000295,2]
[328612248,1717609844324,-690.0,0.000295,2]
[328612249,1717609844334,-3451.0,0.000295,2]
[328612250,1717609844343,-226.40515539,0.000295,3]
[328612251,1717609844353,-690.0,0.000295,2]
[328612252,1717609844362,-345.0,0.000295,2]
[328612253,1717609844371,-150.0,0.000295,2]
[328612254,1717609844380,-172.00776659,0.000295,2]
[328612255,1717609844390,-600.0,0.000295,10]
[328612256,1717609844399,-1624.957094,0.000295,2]
[328612257,1717609844409,-998.3,0.000295,2]
[328612258,1717609844418,-200.0,0.000295,10]
[328612259,1717609844427,-998.3,0.000295,2]
[328612260,1717609844436,-310.26,0.000295,2]
[328612261,1717609844446,-310.26,0.000295,2]
[328612262,1717609844455,-2100.0,0.00029506,2]
[328612263,1717609844466,-151.42,0.0002952,2]
[328612264,1717609844477,-96943.3940622,0.0002953,2]
[328612265,1717609844486,-4081.17041741,0.0002955,2]
[328612266,1717609844495,-362.0,0.00029557,15]
[328612267,1717609844508,-362.0,0.00029567,15]
[328612268,1717609844517,-362.0,0.00029577,15]
[328612269,1717609844527,-326.15186733,0.00029578,2]
[328612270,1717609844537,-155.38829605,0.00029578,2]
[328612271,1717609844547,-1690.87815907,0.00029578,2]
[328612272,1717609844556,-266.29033303,0.00029578,2]
[328612273,1717609844566,-155.69221044,0.00029578,2]
[328612274,1717609844575,-14842.7621249,0.00029579,8]
[328612275,1717609844584,-221.0,0.00029579,2]
[328612276,1717609844594,-221.0,0.00029579,2]
[328612277,1717609844605,-221.0,0.00029579,2]
[328612278,1717609844615,-221.0,0.00029579,2]
[328612279,1717609844624,-211.0,0.00029579,2]
[328612280,1717609844633,-211.0,0.00029579,2]
[328612281,1717609844643,-211.0,0.00029579,2]
[328612282,1717609844652,-211.0,0.00029579,2]
[328612283,1717609844662,-211.0,0.00029579,2]
[328612284,1717609844671,-211.0,0.00029579,2]
[328612285,1717609844680,-211.0,0.00029579,2]
[328612286,1717609844689,-211.0,0.00029579,2]
[328612287,1717609844699,-211.0,0.00029579,2]
[328612288,1717609844708,-211.0,0.00029579,2]
[328612289,1717609844717,-211.0,0.00029579,2]
[328612290,1717609844727,-211.0,0.00029579,2]
[328612291,1717609844736,-252.0,0.00029579,2]
[328612292,1717609844746,-252.0,0.00029579,2]
[328612293,1717609844758,-252.0,0.00029579,2]
[328612294,1717609844767,-252.0,0.00029579,2]
[328612295,1717609844777,-252.0,0.00029579,2]
[328612296,1717609844786,-252.0,0.00029579,2]
[328612297,1717609844795,-252.0,0.00029579,2]
[328612298,1717609844804,-252.0,0.00029579,2]
[328612299,1717609844813,-252.0,0.00029579,2]
[328612300,1717609844822,-252.0,0.00029579,2]
[328612301,1717609844831,-252.0,0.00029579,2]
[328612302,1717609844841,-252.0,0.00029579,2]
[328612303,1717609844850,-211.0,0.00029579,2]
[328612304,1717609844860,-204.0,0.00029579,2]
[328612305,1717609844869,-204.0,0.00029579,2]
[328612306,1717609844879,-204.0,0.00029579,2]
[328612307,1717609844889,-204.0,0.00029579,2]
[328612308,1717609844899,-222.0,0.00029579,2]
[328612309,1717609844908,-222.0,0.00029579,2]
[328612310,1717609844917,-151.0,0.00029579,7]
[328612311,1717609844928,-1161.01414943,0.0002958,15]
[328612312,1717609844938,-240.06048357,0.0002958,15]
[328612313,1717609844947,-151.42,0.0002958,2]
[328612314,1717609844957,-151.42,0.0002958,2]
[328612315,1717609844966,-151.42,0.0002958,2]
[328612316,1717609844976,-151.42,0.0002958,2]
[328612317,1717609844985,-155.14090417,0.0002958,2]
[328612318,1717609844995,-4081.17041738,0.00029582,2]
[328612319,1717609845006,-718.38,0.00029586,4]
[328612320,1717609845016,-500.0,0.00029586,4]
[328612321,1717609845026,-1862.97,0.00029586,4]
[328612322,1717609845043,-500.0,0.00029586,4]
[328612323,1717609845055,-762.7,0.00029586,4]
[328612324,1717609845065,-500.0,0.00029586,4]
[328612325,1717609845075,-500.0,0.00029586,4]
[328612326,1717609845084,-500.0,0.00029586,4]
[328612327,1717609845093,-1107.62,0.00029586,4]
[328612328,1717609845103,-500.0,0.00029586,4]
[328612329,1717609845112,-500.0,0.00029586,4]
[328612330,1717609845122,-500.0,0.00029586,4]
[328612331,1717609845131,-500.0,0.00029586,4]
[328612332,1717609845141,-1745.49,0.00029586,4]
[328612333,1717609845151,-500.0,0.00029586,4]
[328612334,1717609845160,-142322.42926923,0.00029587,13]
[328612335,1717609845178,-2295.6112263,0.00029587,13]
[328612336,1717609845201,-3002.61362883,0.00029587,13]
[328612337,1717609845848,-3424.72448741,0.00029587,13]
[328612338,1717609845984,-6982.81714641,0.00029587,13]
[328612339,1717609846105,-2108.9075643,0.00029587,13]
[328612340,1717609846136,-274026.33270384,0.00029587,13]
[328612341,1717609846146,-325.22573506,0.00029587,2]
[328612342,1717609846156,-155.16490413,0.00029587,2]
[328612343,1717609846166,-1040.91551464,0.00029587,2]
[328612344,1717609846176,-415.60857681,0.00029587,2]
[328612345,1717609846186,-266.47047598,0.00029587,2]
[328612346,1717609846198,-7527.02870314,0.00029587,2]
[328612347,1717609846208,-161.27128855,0.00029587,2]
[328612348,1717609846219,-190.70283289,0.00029587,2]
[328612350,1717609846228,-19618.76557597,0.00029587,2]
[328612352,1717609846238,-273.83475148,0.00029587,2]
[328612354,1717609846247,-6791.06754976,0.00029587,2]
[328612356,1717609846258,-627.26830154,0.00029587,2]
[328612358,1717609846271,-155.0,0.00029587,2]
[328612360,1717609846281,-9389.75415194,0.00029587,2]
[328612362,1717609846290,-877.73264139,0.00029587,3]
[328612364,1717609846300,-155.0,0.00029587,2]
[328612366,1717609846309,-325.53303523,0.00029587,2]
[328612369,1717609846319,-411.3026678,0.00029587,2]
[328612371,1717609846328,-241.65404838,0.00029587,2]
[328612373,1717609846337,-407.11799921,0.00029587,2]
[328612374,1717609846346,-155.0,0.00029587,2]
[328612376,1717609846356,-155.0,0.00029587,2]
[328612379,1717609846365,-2278.74682969,0.00029587,2]
[328612381,1717609846375,-211.25827532,0.00029587,2]
[328612402,1717609846568,-847.73225003,0.00029587,2]
[328612404,1717609846578,-502.58674056,0.00029589,6]
[328612406,1717609846587,-5145.78189032,0.0002959,2]
[328612408,1717609846597,-500.0,0.00029597,4]
[328612410,1717609846607,-1107.62,0.00029597,4]
[328612412,1717609846616,-500.0,0.00029597,4]
[328612414,1717609846625,-500.0,0.00029597,4]
[328612416,1717609846634,-718.38,0.00029598,4]
[328612418,1717609846643,-500.0,0.00029598,4]
[328612420,1717609846654,-500.0,0.00029598,4]
[328612423,1717609846663,-1107.62,0.00029598,4]
[328612425,1717609846673,-500.0,0.00029598,4]
[328612426,1717609846683,-500.0,0.00029598,4]
[328612429,1717609846692,-500.0,0.00029598,4]
[328612431,1717609846700,-500.0,0.00029599,4]
[328612432,1717609846710,-405.51258603,0.00029599,4]
[328612435,1717609846719,-1862.97,0.00029599,4]
[328612436,1717609846728,-1862.97,0.00029599,4]
[328612438,1717609846737,-500.0,0.00029599,4]
[328612440,1717609846746,-500.0,0.00029599,4]
[328612442,1717609846757,-500.0,0.00029599,4]
[328612445,1717609846767,-500.0,0.00029599,4]
[328612447,1717609846776,-500.0,0.00029599,4]
[328612448,1717609846786,-500.0,0.00029599,4]
[328612451,1717609846795,-3354.23,0.000296,2]
[328612453,1717609846805,-2818.38,0.000296,2]
[328612455,1717609846816,-200.0,0.000296,2]
[328612457,1717609846825,-172.00776655,0.000296,2]
[328612459,1717609846834,-2437.435641,0.000296,2]
[328612461,1717609846843,-600.0,0.000296,10]
[328612463,1717609846852,-200.0,0.000296,10]
[328612465,1717609846862,-4081.17041738,0.00029614,2]
[328612467,1717609846871,-150.0,0.00029621,2]
[328612469,1717609846880,-4081.17041738,0.00029645,2]
[328612471,1717609846889,-718.38,0.00029649,4]
[328612473,1717609846898,-500.0,0.00029649,4]
[328612475,1717609846907,-500.0,0.00029649,4]
[328612477,1717609846916,-762.7,0.00029649,4]
[328612479,1717609846925,-762.7,0.00029649,4]
[328612481,1717609846934,-500.0,0.00029649,4]
[328612483,1717609846944,-500.0,0.00029649,4]
[328612485,1717609846953,-1745.49,0.00029649,4]
[328612487,1717609846962,-1745.49,0.00029649,4]
[328612489,1717609846972,-150.0,0.0002965,5]
[328612491,1717609846981,-325.27729568,0.0002965,2]
[328612493,1717609846991,-351.07982112,0.00029656,2]
[328612495,1717609847000,-1161.01414943,0.0002966,15]
[328612497,1717609847011,-240.06048357,0.0002966,15]
[328612499,1717609847021,-173.94091788,0.0002966,2]
[328612501,1717609847030,-160.0,0.00029675,2]
[328612503,1717609847039,-4081.17041738,0.00029677,2]
[328612505,1717609847049,-151.42,0.0002969,2]
[328612507,1717609847059,-150.0,0.00029699,7]
[328612509,1717609847068,-11653.58057379,0.000297,2]
[328612511,1717609847077,-4000.0,0.000297,2]
[328612513,1717609847086,-4000.0,0.000297,2]
[328612515,1717609847095,-4000.0,0.000297,2]
[328612517,1717609847105,-4000.0,0.000297,2]
[328612519,1717609847115,-4018.9356,0.000297,2]
[328612521,1717609847124,-4324.9942,0.000297,2]
[328612523,1717609847133,-4000.0,0.000297,2]
[328612525,1717609847142,-4000.0,0.000297,2]
[328612527,1717609847151,-4000.0,0.000297,2]
[328612529,1717609847161,-4000.0,0.000297,2]
[328612531,1717609847170,-172.00776655,0.000297,2]
[328612533,1717609847184,-3249.914188,0.000297,2]
[328612535,1717609847194,-600.0,0.000297,10]
[328612538,1717609847203,-200.0,0.000297,10]
[328612539,1717609847212,-500.0,0.000297,3]
[328612541,1717609847223,-160.0,0.00029701,2]
[328612543,1717609847232,-4081.17041738,0.00029709,2]
[328612546,1717609847241,-351.07982111,0.00029717,2]
[328612548,1717609847250,-1161.01414943,0.0002974,15]
[328612550,1717609847262,-240.06048357,0.0002974,15]
[328612552,1717609847272,-4081.17041738,0.00029741,2]
[328612554,1717609847281,-12915.55149619,0.0002975,2]
[328612556,1717609847290,-526.16,0.00029753,2]
[328612558,1717609847299,-989.24155201,0.0002976,2]
[328612560,1717609847308,-1703.52938246,0.0002976,2]
[328612562,1717609847317,-7445.49564346,0.0002976,2]
[328612564,1717609847326,-213.10576098,0.0002976,2]
[328612566,1717609847336,-261.99871468,0.0002976,2]
[328612567,1717609847345,-153.02247623,0.0002976,2]
[328612569,1717609847354,-4081.17041738,0.00029773,2]
[328612571,1717609847364,-351.07982111,0.00029778,2]
[328612574,1717609847374,-150.0,0.00029799,2]
[328612576,1717609847383,-164.0,0.000298,2]
[328612577,1717609847392,-172.00776655,0.000298,2]
[328612579,1717609847401,-4062.392736,0.000298,2]
[328612581,1717609847410,-5687.34983,0.000298,2]
[328612583,1717609847419,-1087.0,0.000298,10]
[328612585,1717609847429,-800.0,0.000298,10]
[328612587,1717609847438,-200.43574657,0.00029804,2]
[328612589,1717609847448,-4081.17041738,0.00029805,2]
[328612591,1717609847458,-233.22,0.00029808,30]
[328612593,1717609847467,-150.0,0.00029813,2]
[328612595,1717609847476,-1161.01414943,0.0002982,15]
[328612597,1717609847485,-240.06048357,0.0002982,15]
[328612599,1717609847495,-245.0,0.0002982,15]
[328612601,1717609847504,-150.0,0.0002982,2]
[328612603,1717609847514,-150.0,0.00029822,2]
[328612605,1717609847523,-362.0,0.00029829,15]
[328612607,1717609847531,-245.0,0.00029829,15]
[328612609,1717609847540,-245.0,0.0002983,15]
[328612611,1717609847550,-153.02247621,0.0002983,2]
[328612613,1717609847559,-2712.48086,0.0002983,2]
[328612615,1717609847568,-989.241552,0.0002983,2]
[328612617,1717609847578,-1703.52938245,0.0002983,2]
[328612619,1717609847588,-7445.49564346,0.0002983,2]
[328612621,1717609847597,-213.10576096,0.0002983,2]
[328612623,1717609847608,-261.99871468,0.0002983,2]
[328612625,1717609847616,-150.0,0.00029835,2]
[328612627,1717609847626,-4081.17041738,0.00029836,2]
[328612629,1717609847635,-362.0,0.00029839,15]
[328612631,1717609847644,-362.0,0.00029839,15]
[328612633,1717609847654,-351.07982111,0.00029839,2]
[328612635,1717609847663,-245.0,0.00029839,15]
[328612637,1717609847673,-245.0,0.00029839,15]
[328612639,1717609847683,-151.42,0.00029839,2]
[328612641,1717609847692,-150.5,0.0002984,15]
[328612643,1717609847701,-245.0,0.0002984,15]
[328612645,1717609847711,-2712.48085,0.0002984,2]
[328612647,1717609847721,-2712.48085,0.0002984,2]
[328612649,1717609847730,-2712.48086,0.0002984,2]
[328612651,1717609847740,-151.42,0.0002984,2]
[328612653,1717609847750,-151.42,0.0002984,2]
[328612656,1717609847763,-151.42,0.0002984,2]
[328612657,1717609847772,-151.42,0.0002984,2]
[328612660,1717609847782,-151.42,0.0002984,2]
[328612662,1717609847792,-151.42,0.0002984,2]
[328612663,1717609847801,-155.93527899,0.00029844,2]
[328612665,1717609847811,-1862.97,0.00029847,4]
[328612667,1717609847820,-500.0,0.00029847,4]
[328612668,1717609847830,-500.0,0.00029847,4]
[328612669,1717609847840,-211.53018415,0.00029848,2]
[328612670,1717609847849,-267.96216886,0.00029848,2]
[328612671,1717609847858,-2195.96437877,0.00029848,2]
[328612672,1717609847868,-500.0,0.00029848,4]
[328612673,1717609847877,-762.7,0.00029848,4]
[328612674,1717609847886,-241.00522179,0.00029848,4]
[328612675,1717609847896,-242.19,0.00029848,4]
[328612676,1717609847906,-500.0,0.00029848,4]
[328612677,1717609847915,-1745.49,0.00029848,4]
[328612678,1717609847925,-362.0,0.00029849,15]
[328612679,1717609847934,-362.0,0.00029849,15]
[328612680,1717609847944,-245.0,0.00029849,15]
[328612681,1717609847953,-245.0,0.00029849,15]
[328612682,1717609847962,-718.38,0.00029849,4]
[328612683,1717609847972,-718.38,0.00029849,4]
[328612684,1717609847981,-718.38,0.00029849,4]
[328612685,1717609847991,-718.38,0.00029849,4]
[328612686,1717609848000,-1862.97,0.00029849,4]
[328612687,1717609848012,-1862.97,0.00029849,4]
[328612688,1717609848021,-1862.97,0.00029849,4]
[328612689,1717609848030,-500.0,0.00029849,4]
[328612690,1717609848039,-500.0,0.00029849,4]
[328612691,1717609848049,-500.0,0.00029849,4]
[328612692,1717609848058,-762.7,0.00029849,4]
[328612693,1717609848067,-762.7,0.00029849,4]
[328612694,1717609848076,-762.7,0.00029849,4]
[328612695,1717609848086,-500.0,0.00029849,4]
[328612696,1717609848095,-500.0,0.00029849,4]
[328612697,1717609848104,-500.0,0.00029849,4]
[328612698,1717609848114,-500.0,0.00029849,4]
[328612699,1717609848123,-500.0,0.00029849,4]
[328612700,1717609848132,-500.0,0.00029849,4]
[328612701,1717609848141,-500.0,0.00029849,4]
[328612702,1717609848150,-1107.62,0.00029849,4]
[328612703,1717609848161,-1107.62,0.00029849,4]
[328612704,1717609848173,-1107.62,0.00029849,4]
[328612705,1717609848186,-1107.62,0.00029849,4]
[328612706,1717609848201,-500.0,0.00029849,4]
[328612707,1717609848213,-500.0,0.00029849,4]
[328612708,1717609848227,-500.0,0.00029849,4]
[328612709,1717609848239,-500.0,0.00029849,4]
[328612710,1717609848250,-500.0,0.00029849,4]
[328612711,1717609848264,-500.0,0.00029849,4]
[328612712,1717609848275,-249.15,0.00029849,4]
[328612713,1717609848287,-500.0,0.00029849,4]
[328612714,1717609848298,-500.0,0.00029849,4]
[328612715,1717609848309,-500.0,0.00029849,4]
[328612716,1717609848320,-1745.49,0.00029849,4]
[328612717,1717609848332,-1745.49,0.00029849,4]
[328612718,1717609848344,-1745.49,0.00029849,4]
[328612719,1717609848356,-500.0,0.00029849,4]
[328612720,1717609848367,-500.0,0.00029849,4]
[328612721,1717609848378,-500.0,0.00029849,4]
[328612722,1717609848389,-500.0,0.00029849,4]
[328612723,1717609848402,-768794.96,0.0002985,5]
[328612724,1717609848414,-156.1275,0.0002985,7]
[328612725,1717609848425,-156.1275,0.0002985,7]
[328612726,1717609848436,-151.0,0.0002985,7]
[328612727,1717609848448,-166.116816,0.0002985,7]
[328612728,1717609848459,-302.61221956,0.00029855,2]
[328612729,1717609848470,-150.0,0.00029856,7]
[328612730,1717609848482,-4149.92630394,0.00029858,2]
[328612731,1717609848492,-176.371291,0.00029858,2]
[328612732,1717609848503,-246.6409296,0.00029858,2]
[328612733,1717609848519,-3066.76266132,0.00029858,2]
[328612734,1717609848531,-1790.43585791,0.00029858,2]
[328612735,1717609848542,-180.2133523,0.00029858,2]
[328612736,1717609848554,-186.63588615,0.00029858,2]
[328612737,1717609848565,-783.48136778,0.00029858,2]
[328612738,1717609848576,-465.03141336,0.00029858,2]
[328612739,1717609848587,-234.1947747,0.00029858,2]
[328612740,1717609848597,-200.55322368,0.00029858,2]
[328612741,1717609848607,-189.52311238,0.00029858,2]
[328612742,1717609848618,-195.46467376,0.00029858,2]
[328612743,1717609848629,-641.21249997,0.00029858,2]
[328612744,1717609848640,-1799.44005259,0.00029858,2]
[328612745,1717609848651,-210.28539183,0.00029858,2]
[328612746,1717609848665,-327.22308883,0.00029858,2]
[328612747,1717609848676,-248.88858283,0.00029858,2]